Cogmind - Beta 13 @@@ ROGUE MODE // 2024.04.27 @ 02:04:15 Player: lav Result: Destroyed by G-34 Mercenary with Small Laser Performance ------------- Evolutions (1) 500 Regions Visited (2) 400 Robots Destroyed (23) 115 Value Destroyed (719) 719 Prototype IDs (1) 20 Alien Tech Used (0) 0 Bonus (0) 0 TOTAL SCORE: 1754 Bonus ------- None Cogmind --------- Core Integrity 0/400 Matter 300/300 Energy 100/100 System Corruption 1% Temperature Warning (393) Movement Flying (192) Ox2 Location -9/Materials Parts ------- > --- POWER (1) -------- (None) > --- PROPULSION (3) --- Cesium-ion Thruster Cesium-ion Thruster > --- UTILITY (2) ------ Large Storage Unit Signal Interpreter > --- WEAPON (3) ------- Beam Rifle Heavy Hammer > --- INVENTORY (15) --- Heavy Ion Engine Titanium Leg Cesium-ion Thruster Heat Sink High-capacity Matter Pod (200) Reactive Plating Reactive Plating Reactive Plating Reactive Plating Field Recycling Unit (0) Peak State ------------ > --- POWER ------------ Ion Engine > --- PROPULSION ------- Titanium Leg Titanium Leg Titanium Leg > --- UTILITY ---------- Large Storage Unit Signal Interpreter > --- WEAPON ----------- Particle Gun Light EM Pulse Cannon Heavy Assault Rifle > --- INVENTORY -------- Heavy Ion Engine Titanium Leg Cesium-ion Thruster Cesium-ion Thruster Cesium-ion Thruster Cesium-ion Thruster Heat Sink High-capacity Matter Pod Reactive Plating Reactive Plating Reactive Plating Reactive Plating Field Recycling Unit Light Assault Rifle Heavy Hammer [Rating: 21] Favorites ----------- Power Ion Engine Engine Ion Engine Propulsion Titanium Leg Treads Light Treads Leg Titanium Leg Wheel Compact Wheel Flight Unit Cesium-ion Thruster Utility Large Storage Unit Storage Large Storage Unit Processor Signal Interpreter Weapon Light EM Pulse Cannon Energy Gun Particle Gun Energy Cannon Light EM Pulse Cannon Ballistic Gun Assault Rifle Impact Weapon Heavy Hammer Build | -11 -10 -9 ------- Run | Yrd Mat Mat Slots Evolved 2 | . . 2 Power . | . . . Propulsion 1 | . . 1 Utility . | . . . Weapon 1 | . . 1 Parts Attached 36 | 6 12 18 Power 8 | . 2 6 Engine 8 | . 2 6 Core . | . . . Reactor . | . . . Propulsion 15 | 3 4 8 Treads 1 | 1 . . Leg 7 | . 2 5 Wheel 2 | 2 . . Hover . | . . . Flight 5 | . 2 3 Utility 3 | 1 2 . Device . | . . . Storage 2 | 1 1 . Processor 1 | . 1 . Hackware . | . . . Protection . | . . . Artifact . | . . . Weapon 10 | 2 4 4 Energy Gun 4 | . 3 1 Energy Cannon 1 | . 1 . Ballistic Gun 4 | 2 . 2 Ballistic Cannon . | . . . Launcher . | . . . Special Weapon . | . . . Impact Weapon 1 | . . 1 Slashing Weapon . | . . . Piercing Weapon . | . . . Special Melee Weapon . | . . . Unidentified Prototypes 1 | . 1 . Parts Lost 10 | . . 10 Power 4 | . . 4 Propulsion 3 | . . 3 Utility . | . . . Weapon 3 | . . 3 Highest Loss Streak 7 | . . 7 To Critical Strikes . | . . . Average Slot Usage (%) 89 | . 87 91 Engine 12 | . 13 10 Leg 22 | . 20 25 Wheel 1 | . 2 . Flight 5 | . 4 5 Storage 12 | . 14 11 Processor 6 | . 2 11 Energy Gun 10 | . 11 9 Energy Cannon 8 | . 10 7 Ballistic Gun 6 | . 6 7 Impact Weapon 1 | . . 3 Naked Turns . | . . . Heaviest Build 35 | 8 34 35 Greatest Support 51 | 32 32 51 Greatest Overweight (x) 3 | . 3 3 Average Overweight (x) . | . . . Largest Inventory Capacity 15 | 8 15 15 Average Capacity 13 | 6 13 15 Most Carried 15 | 5 9 15 Average Carried 9 | 3 6 12 Final Capacity 15 | 8 15 15 Final Carried 10 | 5 6 10 Class Distribution -------------------- 70% | Mutant 29% | Gunner Dominant Class ---------------- Mutant | -10/Materials Gunner | -9/Materials Resources | -11 -10 -9 ----------- Run | Yrd Mat Mat Matter Collected 826 | 216 223 387 Remotely . | . . . Salvage Created 779 | . 255 524 Parts 52 | . 18 34 Haulers Intercepted . | . . . Recyclers Shooed 1 | . 1 . Parts Field Recycled . | . . . Retrieved Matter . | . . . Parts Self-Destructed . | . . . Prevented . | . . . Kills | -11 -10 -9 ------- Run | Yrd Mat Mat Combat Hostiles Destroyed 20 | . 6 14 Melee 1 | . . 1 Guns 14 | . 4 10 Cannons 2 | . . 2 AOE 2 | . 2 . Classes Destroyed 7 | . 3 4 Worker 1 | . . 1 Builder 1 | . 1 . Watcher 1 | . 1 . Swarmer 4 | . . 4 Grunt 11 | . 6 5 Duelist 1 | . . 1 Sentry 4 | . . 4 Best Kill Streak 5 | . 4 5 Combat Bots Only 4 | . 2 4 Max Kills in Single Turn 3 | . 3 1 Gunslinging . | . . . Exploded 1 | . 1 . Melee 1 | . . 1 Uniques/NPCs Destroyed . | . . . Combat | -11 -10 -9 -------- Run | Yrd Mat Mat Hostile Shots Fired 196 | . 27 169 Missed 52 | . 7 45 Damage Taken 1999 | 1 326 1672 Core 479 | . 74 405 Absorbed by Shields . | . . . Core Remaining (%) 85 | 100 70 . Volleys Fired 56 | . 20 36 Largest 3 | . 2 3 Hottest 141 | . 121 141 Shots Fired 102 | . 40 62 Gun 80 | . 34 46 Cannon 22 | . 6 16 Launcher . | . . . Special . | . . . Kinetic 37 | . 16 21 Thermal 43 | . 18 25 Explosive . | . . . Electromagnetic 22 | . 6 16 Robot Hit Streak 9 | . 4 9 Robot Miss Streak 3 | . 3 3 Penetration Max . | . . . Secondary Targets 1 | . . 1 Max Gunslinging Chain 1 | . . 1 Shots Hit Robots 72 | . 20 52 Core Hits 38 | . 14 24 Critical Kills . | . . . Critical Parts Destroyed 2 | . . 2 Critical Strikes 4 | . 1 3 Burn 2 | . 1 1 Smash 2 | . . 2 Melee Attacks 15 | . . 15 Impact 15 | . . 15 Slashing . | . . . Piercing . | . . . Sneak Attacks . | . . . Combat Hostiles . | . . . Follow-up Attacks . | . . . Damage Inflicted 1457 | 4 437 1016 Guns 593 | . 199 394 Cannons 301 | . 63 238 Explosions 175 | . 175 . Melee 365 | . . 365 Ramming 23 | 4 . 19 Kinetic 257 | . 94 163 Thermal 447 | . 216 231 Explosive 64 | . 64 . Electromagnetic 301 | . 63 238 Impact 365 | . . 365 Slashing . | . . . Piercing . | . . . Highest Corruption 1 | . . 1 Average Corruption 1 | . . 1 Corruption Purged . | . . . Corruption Blocked . | . . . Effects 7 | . . 7 Message Errors 1 | . . 1 Matter Fused 1 | . . 1 Heat Flow Errors 2 | . . 2 Energy Discharges 1 | . . 1 Data Loss (minor) 2 | . . 2 Overload Shots . | . . . Overflow Damage 59 | . . 59 Projectiles . | . . . Explosions . | . . . Melee 59 | . . 59 Knockbacks 1 | . . 1 Impact 1 | . . 1 Kinetic . | . . . Secondary . | . . . Self-Inflicted Damage 67 | 1 66 . Shots 1 | . 1 . Rammed 2 | 2 . . Targets Rammed 6 | 2 . 4 Kicked 4 | . . 4 Crushed . | . . . Highest Temperature 409 | . 208 409 Average Temperature 110 | . 93 120 Received Heat Transfer 798 | . 174 624 Effects 1 | . . 1 Damage (minor) 1 | . . 1 Siege Activations . | . . . Robots Corrupted . | . . . Combat Hostiles . | . . . Parts Fried 1 | . . 1 Impact Corruptions 2 | . . 2 Robots Melted . | . . . Combat Hostiles . | . . . Parts Melted 2 | . . 2 Heat Transferred 1186 | . 520 666 Parts Sabotaged . | . . . Parts Stolen . | . . . Parts Stripped . | . . . Power Chain Reactions 1 | . 1 . Alert | -11 -10 -9 ------- Run | Yrd Mat Mat Peak Influence 288 | . 144 288 Initial 56 | . . 56 Average 114 | . 93 151 Maximum Alert Level 1 | . . 1 Low Security (%) 89 | 100 100 76 Level 1 10 | . . 23 Level 2 . | . . . Level 3 . | . . . Level 4 . | . . . Level 5 . | . . . High Security . | . . . Max Security . | . . . Squads Dispatched 3 | . 1 2 Investigation 2 | . 1 1 Extermination . | . . . Reinforcement 1 | . . 1 Assault . | . . . Garrison . | . . . Intercept . | . . . Searches Triggered . | . . . Construction Impeded . | . . . Haulers Reinforced . | . . . Active Scanning Responses . | . . . Cargo Convoy Interrupts . | . . . Stealth | -11 -10 -9 --------- Run | Yrd Mat Mat Distress Signals 2 | . 1 1 Communications Jammed . | . . . Distress Signals . | . . . Times Spotted 28 | . 8 20 Peak Tracking Total 5 | . 3 5 Tactical Retreats 1 | . . 1 Traps | -11 -10 -9 ------- Run | Yrd Mat Mat Traps Triggered 1 | . . 1 Indirectly . | . . . Trap Hack Attempts . | . . . Triggered . | . . . Disarmed . | . . . Reprogrammed . | . . . Reused . | . . . Traps Extracted . | . . . Installed . | . . . Triggered . | . . . Machines | -11 -10 -9 ---------- Run | Yrd Mat Mat Machines Disabled 3 | . 2 1 Max in Single Turn 2 | . 2 1 Machines Repaired . | . . . Machines Dismantled . | . . . Machines Sabotaged . | . . . Overloaded Fab Kills . | . . . Hacking | -11 -10 -9 --------- Run | Yrd Mat Mat Machines Accessed 10 | . 6 4 Terminals 9 | . 5 4 Fabricators . | . . . Repair Stations . | . . . Recycling Units 1 | . 1 . Scanalyzers . | . . . Garrison Access . | . . . Total Hacks 35 | . 19 16 Successful 15 | . 12 3 Failed 20 | . 7 13 Catastrophic 2 | . 1 1 Database Lockouts . | . . . Manual . | . . . Terminals 32 | . 16 16 Fabricators . | . . . Repair Stations . | . . . Recycling Units 3 | . 3 . Scanalyzers . | . . . Garrison Access . | . . . Terminal Hacks 12 | . 9 3 Record 2 | . 2 . Level Access Points 1 | . . 1 Emergency Access Points 1 | . 1 . Alert Level 1 | . . 1 Transport Status 1 | . 1 . Investigation Status 1 | . 1 . Reinforcement Status 1 | . 1 . Recall Investigation 1 | . 1 . Hauler Manifests 1 | . 1 . Registered Prototypes 1 | . . 1 Zone Layout 1 | . 1 . Fabricator Hacks . | . . . Repair Station Hacks . | . . . Recycling Unit Hacks 3 | . 3 . Recycle Component 2 | . 2 . Report Inventory 1 | . 1 . Scanalyzer . | . . . Garrison Access Hacks . | . . . Unauthorized Hacks . | . . . Terminals . | . . . Fabricators . | . . . Repair Stations . | . . . Recycling Units . | . . . Scanalyzers . | . . . Garrison Access . | . . . Data Cores Recovered . | . . . Used . | . . . Hacking Detections 10 | . 6 4 Full Trace Events 3 | . 1 2 Feedback Events . | . . . Feedback Blocked . | . . . Robot Schematics Acquired . | . . . Robots Built . | . . . Authchips . | . . . Time . | . . . Total Robot Build Rating . | . . . Part Schematics Acquired . | . . . Parts Built . | . . . Authchips . | . . . Time . | . . . Total Part Build Rating . | . . . Parts Repaired . | . . . Time . | . . . Parts Recycled 2 | . 2 . Recycled Matter . | . . . Retrieved Matter . | . . . Retrieved Components . | . . . Parts Scanalyzed . | . . . Part Schematics Acquired . | . . . Parts Damaged . | . . . Bothacking | -11 -10 -9 ------------ Run | Yrd Mat Mat Used RIF Installer . | . . . Robots Hacked . | . . . Non-combat . | . . . Combat . | . . . Robot Hacks Applied . | . . . Relay Couplers Released . | . . . Fabnet Peak Effective % . | . . . Robots Rewired . | . . . Allies Hacked . | . . . Hacks Repelled . | . . . Allies | -11 -10 -9 -------- Run | Yrd Mat Mat Total Allies . | . . . Largest Group . | . . . Highest-Rated Group . | . . . Highest-Rated Ally . | . . . Total Orders . | . . . Ally Attacks . | . . . Total Damage . | . . . Kills . | . . . Allies Corrupted . | . . . Allies Melted . | . . . Intel | -11 -10 -9 ------- Run | Yrd Mat Mat Robot Analysis Total . | . . . Derelict Logs Recovered . | . . . Drone Launches . | . . . Drone Recoveries . | . . . Exploration | -11 -10 -9 ------------- Run | Yrd Mat Mat Turns Passed 1489 | 95 704 690 Spaces Moved 796 | 87 365 344 Core 18 | 18 . . Treads . | . . . Legs 552 | . 258 294 Wheels 107 | 69 38 . Hover . | . . . Flight 119 | . 69 50 Fastest Speed 50 | 50 100 126 Average Speed 148 | 89 167 144 Slowest Speed 272 | 100 247 272 Overloaded Moves . | . . . Propulsion Burnouts . | . . . Robots Hopped . | . . . Cave-ins Triggered . | . . . Exploration Rate (%) 33 | 4 65 31 Regions Visited 2 Branch Regions . Pre-discovered Areas . | . . . Known Exits Taken 1 | . 1 . Unknown Exits Taken 1 | 1 . . Scrap Searched . | . . . Spaces Dug . | . . . Terrain Destroyed 32 | . 32 . Melee . | . . . Projectile . | . . . AOE 32 | . 32 . Terrain Rammed . | . . . Walls Destroyed . | . . . Machines Disabled . | . . . Actions | -11 -10 -9 --------- Run | Yrd Mat Mat Total 974 | 103 418 453 Wait 13 | . . 13 Move 794 | 86 364 344 Hop . | . . . Pick Up 40 | 9 13 18 Fast Attach 2 | 1 1 . Attach 16 | 4 2 10 Detach . | . . . Swap 18 | 1 9 8 Drop 14 | . 9 5 Fire 56 | . 20 36 Melee 15 | . . 15 Ram 2 | 2 . . Kick 4 | . . 4 Crush . | . . . Escape Stasis . | . . . Rewire . | . . . Trap . | . . . Miscellaneous . | . . . Route ------- -11/Scrapyard -10/Materials (discovered 2 exits: *Mat / *Min) -9/Materials (discovered 3 exits: Mat x3) History --------- Turn | Location | Event 2 | -11/Scrapyard | Discovered new exit (range 16) 96 | -11/Scrapyard | Entered Materials 307 | -10/Materials | Build established: Mutant 662 | -10/Materials | Discovered new exit (range 16) 701 | -10/Materials | Identified exit to Mines 762 | -10/Materials | Discovered new exit (range 13) 783 | -10/Materials | Identified exit to Materials 800 | -10/Materials | Entered another Materials area 800 | -9/Materials | Evolved 2 slots: Propulsion x1, Weapon x1 869 | -9/Materials | Identified exit to Materials 1113 | -9/Materials | Build established: Gunner 1331 | -9/Materials | Core integrity fell below 50% 1343 | -9/Materials | Lost 7 parts (1p3n3w) 1482 | -9/Materials | Core integrity fell below 20% 1490 | -9/Materials | Destroyed by G-34 Mercenary with Small Laser Last Messages --------------- 01347_ System corrupted: Component data lost. 01351_ Acquired Ion Engine. 01352_ Ion Engine destroyed. 01353_ Acquired 10 matter. 01368_ Acquired Beam Rifle. 01372_ G-34 Mercenary suffers critical hit (Burn). 01374_ Sml. Laser melted. 01374_ G-34 Mercenary destroyed. 01378_ Acquired 10 matter. 01418_ Connecting with Terminal... 01433_ System corrupted: Matter fused (-8). 01475_ System corrupted: Heat flow error (+296). 01485_ Overheating: Beam Rifle damaged (-18). 01486_ Cesium-ion Thruster severed. 01486_ Melee Analysis Suite melted. 01486_ L-31 Rogue destroyed. 01488_ Acquired 8 matter. 01490_ Ion Engine destroyed. 01490_ K-01 Serf collects debris. Map ----- +----------------------------------------------------+ | ???????????????????????????# =*[ ## #??? | | ???????????????????????????# **=%!! ## ##?? | | ???????????????????????????#########+##### ### | | ?????????????? #############=[ | | ?????????????? / =[=% | | ?????????????????????######## ##### | | ????????????????????????????# #???##+##### | | ????????????????????????????# #???? [ ???## | | ????????????????????????????# #???? ????# """ | | ????????????????????????????# #??? ????# """ | | ????????????????????????????# #???! !???#" """ | | ????????????????????????????#[#??] ???#T | | ????????????????????????????#=#?? ???#" | | ????????????????????????????# #?# ???## | | ????????????????????????????# #?# ????# | | ????